bitfinex/quotes_SOLUSD_20240811
["timestamp","ask_amount","ask_price","bid_price","bid_amount"]
[1723381122538,4.6095,151.86,151.82,15.6467]
[1723381122719,6.87965068,151.89,151.82,15.6467]
[1723381122925,4.6092,151.87,151.82,15.6467]
[1723381123936,6.87965068,151.89,151.82,15.6467]
[1723381124119,2.14850836,151.88,151.82,15.6467]
[1723381124328,4.6101,151.84,151.82,15.6467]
[1723381125040,4.6094,151.87,151.82,15.6467]
[1723381125333,6.87965068,151.89,151.82,15.6467]
[1723381126544,4.6092,151.87,151.82,15.6467]
[1723381126934,4.6096,151.86,151.82,15.6467]
[1723381127115,4.6092,151.87,151.82,15.6467]
[1723381128630,4.6089,151.88,151.82,15.6467]
[1723381129042,4.6089,151.88,151.83,0.56012288]
[1723381129914,4.6094,151.87,151.82,15.6467]
[1723381130851,4.6095,151.86,151.82,15.6467]
[1723381131226,4.6092,151.87,151.82,15.6467]
[1723381131731,4.6095,151.86,151.82,15.6467]
[1723381131932,6.87965068,151.89,151.82,15.6467]
[1723381132630,1.64636407,151.88,151.82,15.6467]
[1723381132829,6.87965068,151.89,151.82,15.6467]
[1723381133959,4.6092,151.87,151.82,15.6467]
[1723381134765,4.6095,151.86,151.82,15.6467]
[1723381134948,1.64652861,151.85,151.82,15.6467]
[1723381135253,4.6101,151.84,151.82,15.6467]
[1723381135636,4.6098,151.85,151.82,15.6467]
[1723381135937,6.25674755,151.84,151.82,15.6467]
[1723381137956,1.64664755,151.84,151.82,15.6467]
[1723381138169,4.6098,151.85,151.82,15.6467]
[1723381138347,1.6466968,151.84,151.82,15.6467]
[1723381138665,6.88032608,151.87,151.82,15.6467]
[1723381138846,380.6,151.88,151.83,0.56087329]
[1723381140271,4.6095,151.87,151.82,15.6467]
[1723381140480,380.6,151.88,151.82,15.6467]
[1723381140643,4.6092,151.87,151.82,15.6467]
[1723381141872,4.61,151.85,151.82,15.6467]
[1723381142070,4.6095,151.86,151.82,15.6467]
[1723381142861,6.25662639,151.85,151.82,15.6467]
[1723381143177,387.48072355,151.88,151.82,15.6467]
[1723381143474,6.88072355,151.88,151.82,15.6467]
[1723381144747,4.6092,151.87,151.82,15.6467]
[1723381145465,4.6095,151.86,151.82,15.6467]
[1723381145773,1.64662549,151.85,151.82,15.6467]
[1723381146077,4.6101,151.84,151.82,15.6467]
[1723381146447,6.88072355,151.88,151.82,15.6467]
[1723381146652,1.64636228,151.93,151.82,15.6467]
[1723381146854,6.87935658,151.92,151.82,15.6467]
[1723381147565,8.52572056,151.92,151.82,15.6467]
[1723381147762,4.6089,151.88,151.82,15.6467]
[1723381147969,4.6096,151.86,151.82,15.6467]
[1723381148474,4.6098,151.85,151.82,15.6467]
[1723381148672,13.54286672,151.91,151.82,15.6467]
[1723381148673,4.6095,151.87,151.82,15.6467]
[1723381148985,4.6089,151.88,151.82,15.6467]
[1723381149880,4.6086,151.89,151.82,15.6467]
[1723381150675,4.6083,151.9,151.82,15.6467]
[1723381150884,4.6083,151.9,151.83,45.0]
[1723381151453,4.6086,151.89,151.83,45.0]
[1723381152180,1.64632511,151.88,151.83,45.0]
[1723381153485,4.6086,151.89,151.83,45.0]
[1723381153778,1.64621807,151.88,151.83,45.0]
[1723381153974,4.6093,151.87,151.82,15.6467]
[1723381154788,4.6093,151.87,151.75,1.0]
[1723381154789,4.6116,151.79,151.78,15.1141]
[1723381156156,1.64727288,151.83,151.78,15.1141]
[1723381156157,4.6113,151.8,151.78,15.1141]
[1723381156560,1.6472614,151.79,151.78,15.1141]
[1723381156871,4.6113,151.8,151.78,15.1141]
[1723381158661,1.64725544,151.79,151.78,15.1141]
[1723381158860,4.6113,151.8,151.78,15.1141]
[1723381159264,14.05399123,151.82,151.78,15.1141]
[1723381159562,7.04291229,151.82,151.78,15.1141]
[1723381159970,11.65361229,151.82,151.78,15.1141]
[1723381164296,4.611,151.81,151.78,15.1141]
[1723381166281,7.04291229,151.82,151.78,15.1141]
[1723381167196,6.25779808,151.83,151.78,15.1141]
[1723381167398,11.62382938,151.84,151.78,15.1141]
[1723381167693,4.73559,151.84,151.78,15.1141]
[1723381168328,4.6104,151.83,151.78,15.1141]
[1723381170416,4.73559,151.84,151.78,15.1141]
[1723381171717,4.6104,151.83,151.78,15.1141]
[1723381172150,4.611,151.81,151.78,15.1141]
[1723381172447,4.6107,151.83,151.78,15.1141]
[1723381172652,4.73619,151.82,151.78,15.1141]
[1723381173516,0.12549,151.82,151.78,15.1141]
[1723381174952,4.6106,151.83,151.78,15.1141]
[1723381175519,0.25098,151.84,151.78,15.1141]
[1723381175722,4.6108,151.82,151.78,15.1141]
[1723381178523,385.46138,151.83,151.78,15.1141]
[1723381178749,380.6,151.83,151.78,15.1141]
[1723381180260,385.2104,151.83,151.78,15.1141]
[1723381180850,0.12549,151.81,151.78,15.1141]
[1723381181021,1.77272692,151.81,151.78,15.1141]
[1723381181335,4.6113,151.8,151.78,15.1141]
[1723381183359,6.25883547,151.79,151.77,6.5148]
[1723381184152,6.25883547,151.79,151.75,1.0]
[1723381184347,1.64723547,151.79,151.75,1.0]
[1723381184556,1.64746489,151.78,151.75,1.0]
[1723381185567,6.25906436,151.79,151.75,1.0]
[1723381185851,4.73679,151.8,151.75,1.0]
[1723381186055,0.12549,151.81,151.75,1.0]
[1723381186236,380.6,151.82,151.75,46.0]
[1723381187945,4.6109,151.82,151.75,46.0]
[1723381188260,6.25806329,151.82,151.75,46.0]
[1723381188866,4.86198,151.81,151.75,1.0]
[1723381189053,6.38425282,151.8,151.75,1.0]
[1723381189238,1.64750507,151.79,151.75,1.0]
[1723381189547,6.25910507,151.79,151.75,1.0]
[1723381190266,1.64750507,151.79,151.75,1.0]
[1723381191140,0.12549,151.8,151.75,1.0]
[1723381191347,0.25098,151.8,151.75,1.0]
[1723381191563,0.12549,151.79,151.75,1.0]
[1723381193869,6.25852831,151.81,151.75,1.0]
[1723381195567,0.12549,151.8,151.75,1.0]
[1723381195976,380.6,151.83,151.75,1.0]
[1723381196175,380.6,151.83,151.75,46.0]
[1723381196664,380.6,151.83,151.76,6.1572]
[1723381197377,380.6,151.83,151.77,15.3646]
[1723381199754,4.6101,151.84,151.77,15.3646]
[1723381199976,0.12549,151.84,151.77,15.3646]
[1723381200274,0.25098,151.84,151.77,15.3646]
[1723381200473,380.6,151.85,151.77,15.3646]
[1723381200851,4.6101,151.84,151.77,15.3646]
[1723381201081,4.6118,151.79,151.77,14.8646]
[1723381201270,4.6116,151.79,151.76,6.1572]
[1723381201774,4.612,151.78,151.75,1.0]
[1723381201970,6.25963731,151.78,151.75,1.0]
[1723381202285,0.12549,151.77,151.75,1.0]
[1723381202451,4.73709,151.79,151.75,1.0]
[1723381202649,0.12549,151.78,151.75,1.0]
[1723381202874,4.86268,151.79,151.75,1.0]
[1723381203080,0.12549,151.78,151.75,1.0]
[1723381203282,4.73799,151.76,151.75,1.0]
[1723381203584,380.6,151.77,151.75,1.0]
[1723381204144,380.6,151.77,151.76,16.0515]
[1723381206644,4.73799,151.76,151.75,1.0]
[1723381206844,2.14986662,151.76,151.75,1.0]
[1723381207347,0.25098,151.76,151.75,1.0]
[1723381207574,5.11446,151.76,151.75,1.0]
[1723381207885,6.7623176,151.76,151.75,1.0]
[1723381208868,0.50196,151.76,151.75,1.0]
[1723381209069,0.12549,151.76,151.75,1.0]
[1723381209262,0.12549,151.79,151.75,1.0]
[1723381209450,5.11356,151.79,151.75,1.0]
[1723381209662,2.14973026,151.79,151.75,1.0]
[1723381209971,4.73799,151.76,151.75,1.0]
[1723381210165,5.11446,151.76,151.75,1.0]
[1723381210567,6.76240684,151.76,151.75,1.0]
[1723381210872,50.11446,151.76,151.75,1.0]
[1723381211675,56.98471584,151.76,151.75,1.0]
[1723381212750,4.614,151.71,151.67,22.6323]
[1723381212955,0.50196,151.7,151.67,22.6323]
[1723381213663,0.50196,151.7,151.6,22.93675586]
[1723381213890,0.50196,151.7,151.6,16.0515]
[1723381214049,0.12549,151.68,151.61,0.56580043]
[1723381214380,0.37647,151.7,151.61,0.56580043]
[1723381214556,380.6,151.69,151.61,0.56580043]
[1723381215179,0.12549,151.68,151.6,16.0515]
[1723381215358,5.11686,151.68,151.6,16.0515]
[1723381216061,0.50196,151.68,151.6,16.0515]
[1723381216681,5.11696,151.68,151.6,16.0515]
[1723381218861,0.12549,151.68,151.61,0.56568983]
[1723381219462,4.74049,151.68,151.6,16.0515]
[1723381220070,4.74049,151.68,151.61,0.56583907]
[1723381220273,4.74049,151.68,151.6,16.0515]
[1723381221468,4.86558,151.69,151.61,45.56565245]
[1723381221666,0.12549,151.68,151.61,0.56565245]
[1723381221866,6.88783059,151.71,151.61,45.56565245]
[1723381222056,6.88783059,151.71,151.61,45.0]
[1723381222257,4.6137,151.72,151.61,45.0]
[1723381222483,4.6137,151.72,151.62,0.56486572]
[1723381222679,6.88651319,151.74,151.65,16.0515]
[1723381222896,4.6131,151.74,151.66,45.0]
[1723381223985,385.2128,151.75,151.66,45.0]
[1723381224508,4.6131,151.74,151.66,45.0]
[1723381225420,1.77354472,151.73,151.65,16.0515]
[1723381225596,4.6143,151.71,151.65,16.0515]
[1723381225902,4.86538,151.7,151.65,16.0515]
[1723381226082,4.73959,151.71,151.65,16.0515]
[1723381226400,4.73989,151.7,151.65,16.0515]
[1723381226587,4.74009,151.69,151.64,6.5808]
[1723381226792,0.12549,151.68,151.61,15.1178]
[1723381228701,4.6153,151.67,151.61,15.1178]
[1723381228897,4.86598,151.68,151.61,15.1178]
[1723381230306,4.86598,151.68,151.6,6.1798]
[1723381231611,4.6153,151.67,151.6,6.1798]
[1723381233117,4.86598,151.68,151.6,6.1798]
[1723381234333,4.6153,151.67,151.6,6.1798]
[1723381237123,4.6153,151.67,151.57,15.1178]
[1723381237323,4.6153,151.67,151.58,45.0]
[1723381239043,387.47562308,151.69,151.6,0.12549]
[1723381239325,380.6,151.69,151.6,1.06694051]
[1723381239515,380.6,151.69,151.6,46.06694051]
[1723381240723,380.6,151.69,151.63,15.1178]
[1723381241029,380.6,151.69,151.64,45.0]
[1723381241327,380.6,151.69,151.63,15.1178]
[1723381241627,4.6141,151.71,151.63,15.1178]
[1723381243221,4.1141,151.71,151.63,15.1178]
[1723381245514,4.6143,151.7,151.63,15.1178]
[1723381247424,385.33949,151.71,151.63,15.1178]
[1723381247598,380.6,151.71,151.63,15.1178]
[1723381248004,380.6,151.71,151.64,45.56445356]
[1723381248932,6.70124236,151.75,151.65,0.12549]
[1723381249240,4.6127,151.76,151.66,6.2717]
[1723381249437,380.6,151.77,151.67,45.0]
[1723381249734,380.6,151.76,151.67,45.0]
[1723381250322,0.37647,151.75,151.67,45.0]
[1723381250741,4.6132,151.74,151.67,45.0]
[1723381252131,380.6,151.76,151.67,45.0]
[1723381252935,0.12549,151.75,151.67,45.0]
[1723381253233,4.73859,151.75,151.67,45.0]
[1723381253534,4.6131,151.75,151.67,45.0]
[1723381254212,4.6131,151.74,151.67,45.0]
[1723381254412,4.6134,151.73,151.67,45.0]
[1723381254609,4.6141,151.71,151.66,6.2717]
[1723381254825,0.12549,151.72,151.66,6.2717]
[1723381255025,4.6135,151.73,151.66,6.2717]
[1723381255222,387.48552004,151.77,151.67,0.56424197]
[1723381255423,0.37647,151.76,151.67,0.56424197]
[1723381255633,4.6129,151.75,151.66,6.2717]
[1723381255846,4.6129,151.75,151.67,45.0]
[1723381256138,4.6128,151.75,151.67,45.0]
[1723381256430,4.98907,151.76,151.67,45.0]
[1723381256825,4.6128,151.75,151.67,45.0]
[1723381257337,4.6131,151.74,151.67,45.0]
[1723381258049,4.73839,151.75,151.67,45.0]
[1723381258824,4.6125,151.76,151.68,16.5881]
[1723381259030,4.6125,151.76,151.69,45.0]
[1723381259234,4.6122,151.77,151.69,45.563436]
[1723381259633,4.6125,151.76,151.69,45.563436]
[1723381259819,4.6125,151.76,151.69,45.0]
[1723381260518,4.6128,151.75,151.68,16.5881]
[1723381260912,0.37647,151.77,151.68,16.5881]
[1723381261219,0.12549,151.76,151.68,16.5881]
[1723381261432,4.6135,151.73,151.68,16.5881]
[1723381261778,1.77345901,151.76,151.68,16.5881]
[1723381261779,6.26193029,151.72,151.68,16.5881]
[1723381262245,1.64813029,151.72,151.68,16.5881]
[1723381262454,1.77361982,151.74,151.68,16.5881]
[1723381262827,0.12549,151.73,151.66,6.2717]
[1723381263134,0.12549,151.71,151.66,6.2717]
[1723381263448,0.12549,151.71,151.64,16.5881]
[1723381263624,4.6144,151.7,151.64,16.5881]
[1723381263818,0.12549,151.69,151.64,16.5881]
[1723381264025,0.25098,151.69,151.64,16.5881]
[1723381264221,0.25098,151.69,151.62,6.2717]
[1723381264456,4.86618,151.68,151.62,6.2717]
[1723381264618,4.86618,151.68,151.6,15.9035]
[1723381264619,1.64879244,151.67,151.6,15.9035]
[1723381265127,6.26409244,151.67,151.6,15.9035]
[1723381266259,15.88699244,151.67,151.58,6.5837]
[1723381266429,0.12549,151.65,151.58,6.5837]
[1723381266630,0.12549,151.63,151.58,6.5837]
[1723381266831,0.12549,151.61,151.55,15.9035]
[1723381267127,1.90053748,151.61,151.55,15.9035]
[1723381267328,0.12549,151.6,151.55,15.9035]
[1723381267633,1.77504725,151.6,151.55,15.9035]
[1723381267834,4.6182,151.58,151.51,15.9035]
[1723381268046,4.619,151.55,151.49,6.5837]
[1723381268241,1.65016437,151.54,151.49,6.5837]
[1723381268435,0.25098,151.57,151.49,6.5837]
[1723381268677,380.6,151.58,151.49,6.5837]
[1723381269145,1.64956819,151.57,151.49,6.5837]
[1723381269341,380.6,151.58,151.49,6.5837]
[1723381269541,380.6,151.58,151.49,7.15149779]
[1723381269766,380.6,151.58,151.53,6.5837]
[1723381270157,380.6,151.58,151.54,45.0]
[1723381270345,380.6,151.58,151.53,6.5837]
[1723381270853,380.6,151.58,151.54,45.0]
[1723381271364,4.6168,151.62,151.54,45.0]
[1723381271971,4.6165,151.63,151.54,45.0]
[1723381274065,1.7747529,151.62,151.54,45.0]
[1723381274364,0.12549,151.61,151.53,6.5837]
[1723381274772,4.74259,151.61,151.53,6.5837]
[1723381274979,6.26696982,151.6,151.53,6.5837]
[1723381275275,4.74329,151.59,151.53,6.5837]
[1723381275444,4.74299,151.6,151.53,6.5837]
[1723381275645,4.6175,151.6,151.53,6.5837]
[1723381275847,0.12549,151.59,151.53,6.5837]
[1723381276372,0.25098,151.59,151.53,6.5837]
[1723381276876,0.12549,151.59,151.53,6.5837]
[1723381277957,1.77514399,151.59,151.53,6.5837]
[1723381278846,0.12549,151.58,151.51,15.9035]
[1723381279051,2.02645738,151.58,151.51,15.9035]
[1723381279283,0.12549,151.55,151.51,15.9035]
[1723381279644,4.6186,151.56,151.51,15.9035]
[1723381279874,1.77547838,151.55,151.51,15.9035]
[1723381280077,1.64998838,151.55,151.51,15.9035]
[1723381280376,1.64997225,151.54,151.51,15.9035]
[1723381280780,4.74409,151.56,151.51,15.9035]
[1723381280982,0.12549,151.55,151.51,15.9035]
[1723381281187,4.74449,151.55,151.51,15.9035]
[1723381281372,0.12549,151.54,151.49,6.5837]
[1723381281696,1.90123267,151.54,151.49,6.5837]
[1723381281900,0.12549,151.53,151.49,6.5837]
[1723381282391,380.6,151.56,151.5,0.56897317]
[1723381282766,380.6,151.56,151.5,0.56794832]
[1723381282969,380.6,151.56,151.49,6.5837]
[1723381283188,11.31804236,151.62,151.51,15.9035]
[1723381283369,4.6168,151.62,151.52,45.0]
[1723381283567,11.485386,151.63,151.52,45.0]
[1723381283784,380.6,151.64,151.54,6.1582]
[1723381284321,380.6,151.64,151.55,45.0]
[1723381284678,385.2162,151.64,151.55,45.56701543]
[1723381284884,380.6,151.69,151.57,6.28369]
[1723381285181,380.6,151.7,151.58,45.0]
[1723381285381,6.85889842,151.69,151.58,45.0]
[1723381285769,4.615,151.68,151.58,45.0]
[1723381285973,4.6146,151.69,151.59,16.1191]
[1723381286168,4.6146,151.69,151.6,45.56543124]
[1723381286374,380.6,151.7,151.6,45.0]
[1723381286375,4.6151,151.68,151.6,45.0]
[1723381286870,4.6147,151.69,151.6,45.0]
[1723381287303,4.6147,151.69,151.6,45.56547962]
[1723381287791,6.86671051,151.7,151.61,0.56549256]
[1723381287994,380.6,151.72,151.62,6.1582]
[1723381287995,4.6141,151.71,151.62,6.1582]
[1723381288211,389.58970957,151.75,151.64,16.1191]
[1723381288383,380.6,151.76,151.64,16.1191]
[1723381288584,11.47890128,151.74,151.65,45.0]
[1723381288785,6.86570128,151.74,151.65,45.0]
[1723381289125,4.6152,151.68,151.64,16.1191]
[1723381289283,1.64858312,151.67,151.64,16.1191]
[1723381290410,4.6152,151.68,151.64,16.1191]
[1723381291091,6.26387791,151.68,151.64,16.1191]
[1723381291287,0.12549,151.67,151.62,6.1582]
[1723381291594,0.12549,151.68,151.62,6.1582]
[1723381291794,380.6,151.71,151.63,0.56561597]
[1723381292000,380.6,151.71,151.63,0.56478014]
[1723381292398,380.6,151.71,151.62,6.1582]
[1723381292702,385.214,151.71,151.62,6.1582]
[1723381292900,385.214,151.71,151.63,45.0]
[1723381293814,380.6,151.71,151.64,16.1191]
[1723381294010,380.6,151.71,151.65,45.56441977]
[1723381294385,4.6138,151.72,151.65,45.0]
[1723381295088,4.6137,151.72,151.65,45.0]
[1723381295292,4.6137,151.72,151.64,16.1191]
[1723381295293,4.614,151.71,151.64,16.1191]
[1723381295515,4.6143,151.7,151.64,16.1191]
[1723381295923,4.6156,151.66,151.64,16.1191]
[1723381296105,0.12549,151.68,151.64,16.1191]
[1723381296429,0.12549,151.69,151.64,16.1191]
[1723381297205,4.6155,151.66,151.64,16.1191]
[1723381297415,1.64870873,151.65,151.64,16.1191]
[1723381297811,1.77424717,151.68,151.6,16.1191]
[1723381298019,4.6167,151.63,151.6,16.1191]
[1723381298220,1.64913248,151.62,151.6,16.1191]
[1723381298595,0.12549,151.61,151.57,6.1582]
[1723381298796,1.90043707,151.61,151.57,6.1582]
[1723381299003,1.90043707,151.61,151.34,1.42988917]
[1723381299004,1.90043707,151.61,151.53,6.1582]
[1723381299337,4.618,151.58,151.53,6.1582]
[1723381299522,4.6184,151.57,151.53,6.1582]
[1723381300494,0.12549,151.55,151.52,16.1191]
[1723381300695,2.15204714,151.55,151.49,6.1582]
[1723381300919,0.50196,151.55,151.49,6.1582]
[1723381301707,5.12096,151.55,151.49,6.1582]
[1723381303236,1.65017351,151.54,151.49,6.1582]
[1723381304492,5.12096,151.55,151.49,6.1582]
[1723381304911,380.6,151.56,151.49,6.1582]
[1723381306031,380.6,151.56,151.49,6.7267534]
[1723381306322,380.6,151.56,151.5,45.0]
[1723381309818,4.6174,151.6,151.5,45.0]
[1723381310125,4.74369,151.58,151.49,6.1582]
[1723381310425,0.12549,151.57,151.49,6.1582]
[1723381311628,4.74379,151.57,151.49,6.1582]
[1723381311800,4.86928,151.57,151.49,6.1582]
[1723381312313,4.86958,151.56,151.49,6.1582]
[1723381312495,1.77559069,151.55,151.49,6.1582]
[1723381313220,0.12549,151.55,151.49,6.1582]
[1723381314224,0.25098,151.55,151.49,6.1582]
[1723381314900,0.12549,151.55,151.49,6.1582]
[1723381317008,0.12549,151.55,151.5,0.56890434]
[1723381317232,0.25098,151.56,151.5,0.56890434]
[1723381317411,0.37647,151.57,151.5,0.56890434]
[1723381317603,0.37647,151.57,151.49,6.1582]
[1723381318803,4.99477,151.57,151.49,6.1582]
[1723381319439,1.65000769,151.56,151.49,6.1582]
[1723381319938,4.6186,151.56,151.49,6.1582]
[1723381320107,1.64999815,151.55,151.49,6.1582]
[1723381320310,0.12549,151.54,151.49,6.1582]
[1723381320513,1.90114122,151.54,151.48,16.1191]
[1723381320715,4.6198,151.52,151.48,16.1191]
[1723381320908,1.65034648,151.51,151.45,6.5607]
[1723381321107,4.74499,151.53,151.45,6.5607]
[1723381321308,0.25098,151.52,151.45,6.5607]
[1723381321725,6.52122764,151.52,151.45,6.5607]
[1723381322251,0.25098,151.52,151.45,6.5607]
[1723381322409,0.37647,151.51,151.45,6.5607]
[1723381322606,0.12549,151.5,151.45,6.5607]
[1723381322835,0.12549,151.52,151.45,6.5607]
[1723381323015,0.25098,151.52,151.45,6.5607]
[1723381323628,0.25098,151.51,151.44,15.0503]
[1723381323832,0.12549,151.5,151.44,15.0503]
[1723381324008,380.85098,151.52,151.44,15.0503]
[1723381324209,380.6,151.52,151.45,0.5698594]
[1723381324921,380.6,151.52,151.45,45.5698594]
[1723381325335,380.6,151.52,151.46,0.5694406]
[1723381325724,380.6,151.52,151.45,45.0]
[1723381327651,4.619,151.55,151.45,45.0]
[1723381327652,0.12549,151.54,151.45,45.0]
[1723381327819,0.37647,151.54,151.45,45.0]
[1723381328220,6.64609518,151.54,151.45,45.0]
[1723381328416,4.6196,151.53,151.45,45.0]
[1723381328627,0.25098,151.52,151.44,15.0503]
[1723381328831,4.6199,151.52,151.44,15.0503]
[1723381329046,0.12549,151.51,151.44,15.0503]
[1723381329255,4.87048,151.54,151.44,15.0503]
[1723381329549,0.12549,151.53,151.44,15.0503]
[1723381329722,0.12549,151.52,151.44,15.0503]
[1723381329920,0.25098,151.52,151.44,15.0503]
[1723381330251,0.12549,151.51,151.44,15.0503]
[1723381331130,0.25098,151.51,151.41,6.5607]
[1723381331426,380.85098,151.51,151.42,20.0]
[1723381331836,0.12549,151.5,151.42,20.0]
[1723381332027,0.25098,151.5,151.42,20.0]
[1723381332638,0.12549,151.49,151.42,20.0]
[1723381333338,0.12549,151.49,151.43,0.57046788]
[1723381333540,0.12549,151.5,151.43,0.57046788]
[1723381333750,0.12549,151.48,151.4,0.8249365]
[1723381333924,4.74759,151.45,151.4,0.8249365]
[1723381334450,0.25098,151.44,151.4,0.8249365]
[1723381334752,4.87328,151.44,151.4,0.8249365]
[1723381334954,30.0,151.43,151.4,0.8249365]
[1723381336429,1.65131417,151.42,151.4,0.8249365]
[1723381336641,30.0,151.41,151.4,0.8249365]
[1723381338543,6.52459686,151.44,151.4,0.8249365]
[1723381339640,1.90229686,151.44,151.4,0.8249365]
[1723381341651,4.6226,151.43,151.4,0.8249365]
[1723381343361,4.6229,151.42,151.4,0.8249365]
[1723381343741,4.6226,151.43,151.4,0.8249365]
[1723381343946,1.65131869,151.42,151.4,0.8249365]
[1723381345160,6.27421869,151.42,151.4,0.8249365]
[1723381345350,1.9022991,151.44,151.4,0.8249365]
[1723381346261,30.0,151.41,151.4,0.8249365]
[1723381351384,6.27391989,151.43,151.4,0.8249365]
[1723381351563,1.65132497,151.42,151.4,0.8249365]
[1723381352551,1.65132642,151.43,151.4,0.8249365]
[1723381352757,1.65132668,151.42,151.4,0.8249365]
[1723381353163,0.12549,151.38,151.29,10.35066907]
[1723381353368,0.12549,151.38,151.23,22.2836]
[1723381353369,0.12549,151.32,151.23,22.2836]
[1723381353657,0.12549,151.3,151.23,22.2836]
[1723381353869,4.6271,151.28,151.23,22.2836]
[1723381354100,1.65297732,151.27,151.23,22.2836]
[1723381354259,1.65297732,151.27,151.18,22.2836]
[1723381354260,0.12549,151.26,151.18,22.2836]
[1723381354581,0.12549,151.32,151.18,22.85949754]
[1723381354752,404.5261535,151.33,151.18,0.57589754]
[1723381354952,379.7750635,151.33,151.26,22.2836]
[1723381355559,379.7750635,151.33,151.27,45.12549]
[1723381356168,379.7750635,151.33,151.27,45.0]
[1723381356676,379.7750635,151.33,151.26,22.2836]
[1723381357594,379.7750635,151.39,151.27,0.57464446]
[1723381357802,4.6242,151.38,151.28,0.12549]
[1723381358082,4.6242,151.38,151.27,65.12549]
[1723381358281,379.7750635,151.41,151.28,0.82427428]
[1723381358491,379.7750635,151.41,151.3,22.2836]
[1723381358702,379.7750635,151.41,151.31,66.07424413]
[1723381358862,379.7750635,151.41,151.31,65.50196]
[1723381359770,1.65162844,151.4,151.31,45.0]
[1723381359973,4.6238,151.39,151.31,45.0]
[1723381360289,384.3982635,151.41,151.32,0.5733588]
[1723381360499,379.7750635,151.41,151.31,45.8235125]
[1723381360664,379.7750635,151.41,151.32,0.25098]
[1723381361096,379.7750635,151.41,151.32,0.82345114]
[1723381361265,379.7750635,151.41,151.32,20.25098]
[1723381361465,379.7750635,151.41,151.33,45.57226353]
[1723381362787,379.7750635,151.41,151.33,45.0]
[1723381362990,4.6237,151.4,151.33,45.0]
[1723381363165,1.77720106,151.39,151.3,22.2836]
[1723381363491,0.12549,151.38,151.3,22.2836]
[1723381363695,2.02857787,151.38,151.3,22.2836]
[1723381364181,4.6253,151.34,151.3,22.2836]
[1723381364381,4.625,151.35,151.3,22.2836]
[1723381364787,4.6254,151.34,151.3,22.2836]
[1723381365798,4.6249,151.36,151.3,22.2836]
[1723381367071,0.12549,151.37,151.3,22.2836]
[1723381367271,379.7750635,151.39,151.3,22.2836]
[1723381367792,379.7750635,151.39,151.31,45.57308844]
[1723381367980,379.7750635,151.39,151.31,45.0]
[1723381368386,384.3990635,151.39,151.31,45.0]
[1723381368587,6.27611694,151.38,151.31,45.0]
[1723381369297,4.6243,151.38,151.31,45.0]
[1723381370094,384.3987635,151.4,151.31,45.0]
[1723381370290,379.7750635,151.4,151.31,45.5729293]
[1723381370904,384.3985635,151.4,151.31,45.5729293]
[1723381371114,379.7750635,151.4,151.32,1.07443833]
[1723381371978,379.7750635,151.4,151.32,0.50196]
[1723381372200,379.7750635,151.4,151.32,0.12549]
[1723381372497,379.7750635,151.4,151.31,45.0]
[1723381372900,379.7750635,151.4,151.32,0.37647]
[1723381373204,379.7750635,151.4,151.33,0.12549]
[1723381373405,379.7750635,151.4,151.34,0.12549]
[1723381373594,4.6223,151.44,151.34,0.37647]
[1723381373779,4.6223,151.44,151.35,0.57179895]
[1723381374288,379.7750635,151.47,151.36,0.25098]
[1723381374490,6.84609295,151.48,151.38,0.12549]
[1723381374793,4.622,151.45,151.37,0.25098]
[1723381375106,1.65109107,151.44,151.36,65.12549]
[1723381375289,6.27329107,151.44,151.36,65.12549]